fUSD/lending_fUSD_20260130
["ID","MTS","AMOUNT","RATE_DAILY","PERIOD"]
[404027711,1769747446052,-420.0,0.00017893,2]
[404027712,1769747446061,-528.89,0.00017899,2]
[404027713,1769747446071,-500.0,0.00017899,2]
[404027714,1769747446080,-511.90125846,0.00017899,2]
[404027715,1769747446090,-500.0,0.00017899,2]
[404027716,1769747446099,-504.3096538,0.00017899,2]
[404027717,1769747446109,-160.0,0.000179,2]
[404027718,1769747446118,-160.0,0.000179,2]
[404027719,1769747446127,-153.81058903,0.000179,2]
[404027720,1769747446137,-10000.0,0.000179,2]
[404027721,1769747446146,-715.41666121,0.000179,2]
[404027722,1769747446156,-1500.0,0.000179,2]
[404027723,1769747446166,-200.7342528,0.000179,2]
[404027724,1769747446177,-248.2836007,0.000179,2]
[404027725,1769747446187,-573.3770158,0.000179,2]
[404027726,1769747446196,-150.30591603,0.000179,2]
[404027727,1769747446206,-6580.22374037,0.000179,2]
[404027728,1769747446215,-200.0,0.00017918,2]
[404027729,1769747446225,-2000.0,0.0001792,2]
[404027730,1769747446235,-500.0,0.00017921,2]
[404027731,1769747446245,-500.0,0.00017921,2]
[404027732,1769747446259,-2868.0,0.00017921,2]
[404027733,1769747446269,-250.0,0.00017921,2]
[404027734,1769747446278,-292.65350667,0.00017921,2]
[404027735,1769747446287,-152.0,0.00017958,3]
[404027736,1769747446299,-455.0,0.00017973,2]
[404027737,1769747446308,-500.0,0.00017973,2]
[404027738,1769747446317,-500.0,0.00017973,2]
[404027739,1769747446327,-500.0,0.00017976,2]
[404027740,1769747446338,-2868.0,0.00017976,2]
[404027741,1769747446347,-1680.0,0.00017982,2]
[404027742,1769747446357,-40581.33873427,0.0001799,3]
[404027743,1769747446366,-180.11,0.00017996,2]
[404027744,1769747446380,-151.0,0.00017997,2]
[404027745,1769747446391,-1047.82673423,0.00017999,5]
[404027746,1769747446401,-500.0,0.00017999,2]
[404027747,1769747446411,-500.0,0.00017999,2]
[404027748,1769747446422,-507.45488603,0.00017999,2]
[404027749,1769747446432,-528.89,0.00017999,2]
[404027750,1769747446444,-528.89,0.00017999,2]
[404027751,1769747446454,-528.89,0.00017999,2]
[404027752,1769747446464,-528.89,0.00017999,2]
[404027753,1769747446473,-528.89,0.00017999,2]
[404027754,1769747446483,-528.89,0.00017999,2]
[404027755,1769747446493,-528.89,0.00017999,2]
[404027756,1769747446502,-528.89,0.00017999,2]
[404027757,1769747446512,-528.89,0.00017999,2]
[404027758,1769747446522,-528.89,0.00017999,2]
[404027759,1769747446531,-528.89,0.00017999,2]
[404027760,1769747446541,-528.89,0.00017999,2]
[404027762,1769747446551,-528.89,0.00017999,2]
[404027763,1769747446560,-528.89,0.00017999,2]
[404027764,1769747446570,-528.89,0.00017999,2]
[404027765,1769747446584,-528.89,0.00017999,2]
[404027766,1769747446593,-528.89,0.00017999,2]
[404027768,1769747446603,-528.89,0.00017999,2]
[404027769,1769747446613,-528.89,0.00017999,2]
[404027770,1769747446623,-528.89,0.00017999,2]
[404027771,1769747446632,-528.89,0.00017999,2]
[404027772,1769747446643,-528.89,0.00017999,2]
[404027773,1769747446653,-529.05,0.00017999,2]
[404027774,1769747446662,-426.63523099,0.00017999,2]
[404027775,1769747446672,-500.0,0.00017999,2]
[404027776,1769747446681,-500.0,0.00017999,2]
[404027777,1769747446690,-500.0,0.00017999,2]
[404027778,1769747446700,-260.11,0.00017999,2]
[404027779,1769747446710,-500.0,0.00017999,2]
[404027780,1769747446719,-671.18944489,0.00017999,2]
[404027781,1769747446729,-281.1030514,0.00017999,2]
[404027782,1769747446738,-277.56043583,0.00017999,2]
[404027783,1769747446748,-500.0,0.00017999,2]
[404027784,1769747446758,-599.07205649,0.00017999,2]
[404027785,1769747446772,-579.77926235,0.00017999,2]
[404027786,1769747446782,-194.29230508,0.00017999,2]
[404027787,1769747446792,-2952.0,0.00018,2]
[404027789,1769747446803,-521.0,0.00018,2]
[404027791,1769747446812,-560020.32482392,0.00018,2]
[404027792,1769747447143,-2228.15781664,0.00018,2]
[404027793,1769747448267,-506.02732936,0.00018,2]
[404027811,1769747667562,-4908851.20372691,0.0004358,20]
[404027812,1769747667597,-1871.2190458,0.0004358,22]
[404027813,1769747667627,-56044.5858877,0.0004358,120]
[404027814,1769747667657,-440.70226518,0.0004358,30]
[404027815,1769747667686,-186.18,0.0004358,120]
[404027816,1769747667717,-772.6538811,0.0004358,60]
[404027817,1769747667748,-1000.0,0.0004358,30]
[404027818,1769747667781,-500.0,0.0004358,120]
[404027819,1769747667814,-500.0,0.0004358,120]
[404027820,1769747667849,-500.0,0.0004358,120]
[404027821,1769747667882,-500.0,0.0004358,120]
[404027822,1769747667914,-500.0,0.0004358,120]
[404027823,1769747667945,-500.0,0.0004358,120]
[404027824,1769747667978,-500.0,0.0004358,120]
[404027825,1769747668012,-500.0,0.0004358,120]
[404027826,1769747668044,-500.0,0.0004358,120]
[404027827,1769747668076,-172.2695612,0.0004358,120]
[404027828,1769747668106,-200.0,0.0004358,30]
[404027829,1769747668135,-150.0,0.0004358,30]
[404027830,1769747668166,-935.51685664,0.0004358,120]
[404027831,1769747668196,-183.68840403,0.0004358,120]
[404027832,1769747668224,-183.68840403,0.0004358,120]
[404027833,1769747668255,-488.08727559,0.0004358,120]
[404027834,1769747668287,-488.08727559,0.0004358,120]
[404027835,1769747668322,-488.08727559,0.0004358,120]
[404027836,1769747668354,-488.08727559,0.0004358,120]
[404027837,1769747668387,-488.08727559,0.0004358,120]
[404027838,1769747668421,-488.08727559,0.0004358,120]
[404027839,1769747668452,-488.08727559,0.0004358,120]
[404027840,1769747668483,-488.08727559,0.0004358,120]
[404027841,1769747668515,-488.08727559,0.0004358,120]
[404027842,1769747668546,-488.08727559,0.0004358,120]
[404027843,1769747668578,-488.08727559,0.0004358,120]
[404027844,1769747668608,-488.08727559,0.0004358,120]
[404027845,1769747668638,-488.08727559,0.0004358,120]
[404027846,1769747668668,-488.08727559,0.0004358,120]
[404027847,1769747668698,-488.08727559,0.0004358,120]
[404027848,1769747668727,-488.08727559,0.0004358,120]
[404027849,1769747668760,-488.08727559,0.0004358,120]
[404027850,1769747668793,-488.08727559,0.0004358,120]
[404027851,1769747668824,-488.08727559,0.0004358,120]
[404027852,1769747668856,-488.08727559,0.0004358,120]
[404027853,1769747668889,-488.08727559,0.0004358,120]
[404027854,1769747668919,-488.08727559,0.0004358,120]
[404027855,1769747668951,-488.08727559,0.0004358,120]
[404027856,1769747668983,-488.08727559,0.0004358,120]
[404027857,1769747669015,-488.08727559,0.0004358,120]
[404027858,1769747669045,-488.08727559,0.0004358,120]
[404027859,1769747669077,-488.08727559,0.0004358,120]
[404027860,1769747669109,-488.08727559,0.0004358,120]
[404027861,1769747669141,-488.08727559,0.0004358,120]
[404027862,1769747669171,-488.08727559,0.0004358,120]
[404027863,1769747669202,-356.47,0.0004358,30]
[404027864,1769747669232,-626.79,0.0004358,88]
[404027865,1769747669262,-277.29468205,0.0004358,60]
[404027866,1769747669291,-1061.86157697,0.0004358,30]
[404027867,1769747669324,-7543.25744069,0.0004358,120]
[404027868,1769747692751,-3153.83130519,0.0004358,120]
[404027869,1769747692780,-623.89,0.0004358,30]
[404027870,1769747692809,-575.42452005,0.0004358,120]
[404027871,1769747692839,-178.05392539,0.0004358,120]
[404027872,1769747692870,-1046.82813725,0.0004358,120]
[404027873,1769747692899,-500.0,0.0004358,120]
[404027874,1769747692928,-500.0,0.0004358,120]
[404027875,1769747692961,-500.0,0.0004358,120]
[404027876,1769747692991,-500.0,0.0004358,120]
[404027877,1769747693021,-316.70280328,0.0004358,120]
[404027878,1769747693052,-500.0,0.0004358,120]
[404027879,1769747693082,-500.0,0.0004358,120]
[404027880,1769747693112,-500.0,0.0004358,120]
[404027881,1769747693141,-500.0,0.0004358,120]
[404027882,1769747693172,-500.0,0.0004358,120]
[404027883,1769747693207,-475.47455024,0.0004358,120]
[404027884,1769747693238,-2367.44,0.0004358,120]
[404027885,1769747693268,-1554.92953908,0.0004358,55]
[404027886,1769747693299,-198.10565081,0.0004358,30]
[404027887,1769747693331,-345.21716001,0.0004358,120]
[404027888,1769747693363,-341.68322873,0.0004358,120]
[404027889,1769747693393,-92309.8239815,0.0004358,120]
[404027890,1769747693426,-1112.10558044,0.0004358,90]
[404027891,1769747693457,-540.35714484,0.0004358,120]
[404027892,1769747693488,-564.24732869,0.0004358,30]
[404027893,1769747693519,-999.999998,0.0004358,120]
[404027894,1769747693549,-543.71217761,0.0004358,30]
[404027895,1769747693578,-406.51542366,0.0004358,30]
[404027896,1769747693608,-689.19513076,0.0004358,91]
[404027897,1769747693637,-1019.28210417,0.0004358,60]
[404027898,1769747693670,-564.61808548,0.0004358,30]
[404027899,1769747693699,-350.92274844,0.0004358,120]
[404027900,1769747693729,-1020.65045605,0.0004358,120]
[404027901,1769747693759,-201.93720984,0.0004358,120]
[404027902,1769747693788,-793.66520967,0.0004358,120]
[404027903,1769747693817,-181.27208687,0.0004358,120]
[404027904,1769747693847,-177.21066813,0.0004358,120]
[404027905,1769747693877,-836.1768126,0.0004358,120]
[404027906,1769747693907,-406.70194358,0.0004358,30]
[404027907,1769747693940,-576.33013777,0.0004358,30]
[404027908,1769747693970,-1029.88851487,0.0004358,30]
[404027909,1769747694002,-1023.71597347,0.0004358,20]
[404027910,1769747694033,-2200.19445432,0.0004358,30]
[404027911,1769747694064,-1049.32823232,0.0004358,30]
[404027912,1769747694094,-203.0938257,0.0004358,30]
[404027913,1769747694126,-1022.36256475,0.0004358,120]
[404027914,1769747694155,-563.2187529,0.0004358,120]
[404027915,1769747694184,-594.31363157,0.0004358,120]
[404027916,1769747694213,-577.47929513,0.0004358,30]
[404027917,1769747694244,-403.91010476,0.0004358,30]
[404027918,1769747694274,-619.42011275,0.0004358,90]
[404027919,1769747694304,-154.33731809,0.0004358,120]
[404027920,1769747694334,-1410.78310986,0.0004358,120]
[404027921,1769747694365,-325.68732249,0.0004358,120]
[404027922,1769747694395,-296.01448774,0.0004358,120]
[404027923,1769747694423,-873.66458332,0.0004358,120]
[404027924,1769747694452,-313.94109403,0.0004358,30]
[404027925,1769747694481,-221.45436288,0.0004358,30]
[404027926,1769747694509,-196.66357515,0.0004358,120]
[404027927,1769747694538,-1562.99529156,0.0004358,120]
[404027928,1769747694567,-192.99929785,0.0004358,120]
[404027929,1769747694595,-189.0822806,0.0004358,120]
[404027930,1769747694624,-991.51984588,0.0004358,120]
[404027931,1769747694654,-193.54971779,0.0004358,120]
[404027932,1769747694683,-374.71573761,0.0004358,30]
[404027933,1769747694712,-501.55540733,0.0004358,120]
[404027934,1769747694741,-323.60663892,0.0004358,30]
[404027935,1769747694772,-940.73662242,0.0004358,120]
[404027936,1769747694801,-441.82962905,0.0004358,120]
[404027937,1769747694832,-435.0457156,0.0004358,120]
[404027938,1769747694862,-1005.28514432,0.0004358,120]
[404027939,1769747695150,-351.67193645,0.0004358,30]
[404027940,1769747695180,-857.11296501,0.0004358,30]
[404027941,1769747695210,-447.71517496,0.0004358,120]
[404027942,1769747695238,-702.8484037,0.0004358,120]
[404027943,1769747695265,-161.59810196,0.0004358,120]
[404027944,1769747695293,-547.24892007,0.0004358,120]
[404027945,1769747695324,-243.57726744,0.0004358,120]
[404027946,1769747695356,-169.10383735,0.0004358,120]
[404027947,1769747695387,-243.57726744,0.0004358,120]
[404027948,1769747695417,-169.10383735,0.0004358,120]
[404027949,1769747695450,-243.57726744,0.0004358,120]
[404027950,1769747695480,-169.10383735,0.0004358,120]
[404027951,1769747695510,-243.57726744,0.0004358,120]
[404027952,1769747695540,-169.10383735,0.0004358,120]
[404027953,1769747695572,-243.57726744,0.0004358,120]
[404027954,1769747695602,-169.10383735,0.0004358,120]
[404027955,1769747695632,-243.57726744,0.0004358,120]
[404027956,1769747695663,-169.10383735,0.0004358,120]
[404027957,1769747695693,-243.57726744,0.0004358,120]
[404027958,1769747695723,-169.10383735,0.0004358,120]
[404027959,1769747695754,-243.57726744,0.0004358,120]
[404027960,1769747695783,-1269.46262459,0.0004358,120]
[404027961,1769747695811,-175.47416749,0.0004358,120]
[404027962,1769747695841,-401.43342886,0.0004358,120]
[404027963,1769747695870,-172.99390492,0.0004358,120]
[404027964,1769747695911,-352.92102416,0.0004358,120]
[404027965,1769747695944,-308.89145775,0.0004358,120]
[404027966,1769747695974,-185.60554489,0.0004358,30]
[404027967,1769747696005,-270.759816,0.0004358,120]
[404027968,1769747696036,-296.66075113,0.0004358,30]
[404027969,1769747696069,-256.59184524,0.0004358,120]
[404027970,1769747696099,-1290.95558202,0.0004358,120]
[404027971,1769747696129,-929.45784568,0.0004358,120]
[404027972,1769747696159,-265.19206411,0.0004358,120]
[404027973,1769747696187,-461.27983792,0.0004358,120]
[404027974,1769747696215,-343.51265416,0.0004358,30]
[404027975,1769747696244,-1225.80698252,0.0004358,30]
[404027976,1769747696274,-414.88494469,0.0004358,120]
[404027977,1769747696303,-430.12292851,0.0004358,30]
[404027978,1769747696336,-157.65421806,0.0004358,60]
[404027979,1769747696372,-324.93822535,0.0004358,120]
[404027980,1769747696406,-532.29835553,0.0004358,30]
[404027981,1769747696438,-156.19281096,0.0004358,30]
[404027982,1769747696470,-195.37665089,0.0004358,120]
[404027983,1769747696500,-368.30211665,0.0004358,120]
[404027984,1769747696531,-150.0,0.0004358,30]
[404027985,1769747696561,-626.14292176,0.0004358,30]
[404027986,1769747696592,-267.87706499,0.0004358,120]
[404027987,1769747696624,-617.38648955,0.0004358,120]
[404027988,1769747696660,-268.85401489,0.0004358,120]
[404027989,1769747696691,-153.6990669,0.0004358,30]
[404027990,1769747696723,-406.9749771,0.0004358,120]
[404027991,1769747696755,-352.44375025,0.0004358,120]
[404027992,1769747696786,-511.15215997,0.0004358,120]
[404027993,1769747696818,-419.51188464,0.0004358,30]
[404027994,1769747696855,-271.02568256,0.0004358,30]
[404027995,1769747696887,-1301.76340694,0.0004358,120]
[404027996,1769747696918,-159.14260221,0.0004358,120]
[404027997,1769747696949,-284.20047727,0.0004358,30]
[404027998,1769747696980,-311.20973456,0.0004358,30]
[404027999,1769747697012,-274.63258274,0.0004358,30]
[404028000,1769747697043,-1484.76870411,0.0004358,60]
[404028001,1769747697078,-598.25471279,0.0004358,120]
[404028002,1769747697110,-646.84509005,0.0004358,120]
[404028003,1769747697141,-171.92179748,0.0004358,120]
[404028004,1769747697172,-951.83217363,0.0004358,30]
[404028005,1769747697202,-456.24521932,0.0004358,30]
[404028006,1769747697232,-944.14978953,0.0004358,120]
[404028007,1769747697263,-1245.15379783,0.0004358,30]
[404028008,1769747697293,-551.27605855,0.0004358,30]
[404028009,1769747697328,-199.52817301,0.0004358,120]
[404028010,1769747697359,-618.08149462,0.0004358,120]
[404028011,1769747697389,-1190.30701944,0.0004358,90]
[404028012,1769747697419,-518.46014342,0.0004358,120]
[404028013,1769747697448,-181.01929291,0.0004358,120]
[404028014,1769747697478,-1267.50475062,0.0004358,120]
[404028015,1769747697509,-553.34364296,0.0004358,120]
[404028016,1769747697540,-552.96881349,0.0004358,120]
[404028017,1769747697570,-473.8554192,0.0004358,120]
[404028018,1769747697601,-1165.35504156,0.0004358,120]
[404028019,1769747697931,-325.84479341,0.0004358,120]
[404028020,1769747697967,-824.92532767,0.0004358,30]
[404028021,1769747698005,-184.59505815,0.0004358,120]
[404028022,1769747698039,-617.29452652,0.0004358,120]
[404028023,1769747698071,-197.19365646,0.0004358,120]
[404028024,1769747698101,-1021.28144122,0.0004358,30]
[404028025,1769747698130,-3106.42693936,0.0004358,120]
[404028026,1769747698160,-246.86658217,0.0004358,120]
[404028027,1769747698189,-872.93623173,0.0004358,30]
[404028028,1769747698218,-1011.99308348,0.0004358,30]
[404028029,1769747698248,-275.12814081,0.0004358,120]
[404028030,1769747698277,-483.06943036,0.0004358,60]
[404028031,1769747698306,-1217.62397099,0.0004358,120]
[404028032,1769747698338,-281.74988613,0.0004358,120]
[404028033,1769747698369,-1017.91770648,0.0004358,120]
[404028034,1769747698403,-478.95716589,0.0004358,120]
[404028035,1769747698432,-779.19565953,0.0004358,30]
[404028036,1769747698462,-1099.29334173,0.0004358,90]
[404028037,1769747698492,-797.33337919,0.0004358,120]
[404028038,1769747698521,-244.8319117,0.0004358,30]
[404028039,1769747698550,-495.14184856,0.0004358,30]
[404028040,1769747698578,-500.0,0.0004358,120]
[404028041,1769747698606,-264.83844471,0.0004358,120]
[404028042,1769747698636,-506.18588349,0.0004358,120]
[404028043,1769747698663,-1193.82325823,0.0004358,120]
[404028044,1769747698691,-174.47047677,0.0004358,120]
[404028045,1769747698718,-325.45937268,0.0004358,120]
[404028046,1769747698748,-1426.10625001,0.0004358,30]
[404028047,1769747698777,-185.53123977,0.0004358,120]
[404028048,1769747698806,-584.7398444,0.0004358,120]
[404028049,1769747698835,-956.17825644,0.0004358,120]
[404028050,1769747698865,-599.76956932,0.0004358,30]
[404028051,1769747698895,-482.64874962,0.0004358,120]
[404028052,1769747698923,-200.0,0.0004358,30]
[404028053,1769747698952,-200.0,0.0004358,30]
[404028054,1769747699997,952.5,0.0004358,20]
[404028088,1769747945753,-1291.28602144,0.00014079,2]
[404028089,1769747947358,-166.41797842,0.00014079,2]
[404028090,1769747950037,-916.0,0.00014079,2]
[404028091,1769747951763,-1204.0,0.00014079,2]
[404028092,1769747955171,-445.04373616,0.00014079,2]
[404028093,1769747956990,-165.51566,0.00014079,2]
[404028094,1769747959009,-419.15495241,0.00014079,2]
[404028095,1769747962669,-196.31686961,0.00014079,2]
[404028096,1769747964470,-267.86018064,0.00014079,2]
[404028142,1769748632304,-86.83460132,0.00014079,2]
[404028143,1769748632314,-195.0,0.00014783,2]
[404028144,1769748632325,-195.0,0.00015487,2]
[404028145,1769748632335,-195.0,0.00015487,2]
[404028146,1769748632345,-289.16,0.00016147,2]
[404028147,1769748632356,-151.0,0.00016174,2]
[404028148,1769748632365,-166.41797842,0.00016373,2]
[404028149,1769748632374,-1084.45132732,0.000164,2]
[404028150,1769748632387,-1748.54867268,0.000164,2]
[404028151,1769748632398,-165.52,0.00016712,2]
[404028152,1769748632409,-500.0,0.00016717,2]
[404028154,1769748632418,-521.80001608,0.00016752,2]
[404028156,1769748632447,-863.13998392,0.00016752,2]
[404028157,1769748632457,-730.51971487,0.00016796,2]
[404028158,1769748632468,-291.01605699,0.00016796,2]
[404028160,1769748632479,-178.46422814,0.00016796,2]
[404028161,1769748632488,-300.0,0.00016797,2]
[404028162,1769748632497,-68.42855299,0.00016797,2]
[404028172,1769748638440,-231.57144701,0.00016797,2]
[404028173,1769748638451,-1334.0,0.00016798,2]
[404028174,1769748638461,-616.0,0.00016798,2]
[404028175,1769748638472,-6575.0,0.00016798,2]
[404028176,1769748638482,-2444.0,0.00016798,2]
[404028177,1769748638493,-152.85,0.00016827,2]
[404028178,1769748638503,-150.0,0.0001683,2]
[404028179,1769748638513,-469.41,0.00016875,2]
[404028180,1769748638526,-250.0,0.00017,2]
[404028181,1769748638540,-500.0,0.00017016,2]
[404028183,1769748638551,-360.22,0.00017204,2]
[404028185,1769748638561,-360.22,0.00017204,2]
[404028187,1769748638571,-180.11,0.00017204,2]
[404028189,1769748638586,-360.22,0.00017204,2]
[404028191,1769748638596,-180.11,0.00017204,2]
[404028192,1769748638611,-180.11,0.00017204,2]
[404028193,1769748638621,-180.11,0.00017204,2]
[404028194,1769748638631,-1000.0,0.0001726,2]
[404028195,1769748638641,-165.0,0.0001736,2]
[404028196,1769748638651,-469.41,0.00017508,2]
[404028198,1769748638661,-1000.0,0.00017534,2]
[404028200,1769748638671,-521.0,0.00017576,2]
[404028201,1769748638683,-521.0,0.00017632,2]
[404028202,1769748638693,-150.0,0.00017702,2]
[404028203,1769748638703,-500.0,0.00017702,2]
[404028204,1769748638713,-150.0,0.00017702,2]
[404028205,1769748638723,-150.0,0.00017702,2]
[404028206,1769748638733,-500.0,0.00017702,2]
[404028208,1769748638746,-500.0,0.00017702,2]
[404028210,1769748638756,-500.0,0.00017702,2]
[404028212,1769748638766,-150.0,0.00017702,2]
[404028213,1769748638775,-2151.0,0.00017702,2]
[404028215,1769748638784,-500.0,0.00017702,2]
[404028216,1769748638794,-198.08470513,0.00017702,2]
[404028217,1769748638804,-150.0,0.00017702,2]
[404028218,1769748638813,-150.0,0.00017702,2]
[404028219,1769748638823,-150.0,0.00017757,2]
[404028220,1769748638833,-510.61573289,0.00017757,2]
[404028221,1769748638843,-150.0,0.00017757,2]
[404028222,1769748638853,-150.0,0.00017757,2]
[404028223,1769748638864,-500.0,0.00017757,2]
[404028224,1769748638873,-500.0,0.00017757,2]
[404028225,1769748638883,-500.0,0.00017757,2]
[404028226,1769748638894,-150.0,0.00017757,2]
[404028227,1769748638904,-2151.0,0.00017757,2]
[404028228,1769748638914,-500.0,0.00017757,2]
[404028229,1769748638924,-521.0,0.00017801,2]
[404028230,1769748638933,-500.0,0.00017808,2]
[404028231,1769748638945,-1000.0,0.00017808,2]
[404028232,1769748638955,-150.0,0.00017812,2]
[404028233,1769748638965,-150.0,0.00017812,2]
[404028234,1769748638975,-150.0,0.00017812,2]
[404028235,1769748638985,-500.0,0.00017812,2]
[404028236,1769748639003,-349.0,0.00017812,2]
[404028237,1769748639013,-500.0,0.00017812,2]
[404028238,1769748639022,-172.87473427,0.00017812,2]
[404028239,1769748639032,-2151.0,0.00017812,2]
[404028240,1769748639043,-398.47984358,0.00017812,2]
[404028241,1769748639053,-2959.645,0.00017816,2]
[404028242,1769748639064,-177.021,0.00017816,2]
[404028243,1769748639074,-2000.0,0.0001783,2]
[404028244,1769748639084,-521.0,0.00017854,2]
[404028245,1769748639094,-200.0,0.00017856,2]
[404028246,1769748639104,-521.0,0.0001786,2]
[404028247,1769748639115,-500.0,0.00017863,2]
[404028248,1769748639125,-150.0,0.00017866,2]
[404028249,1769748639135,-150.0,0.00017866,2]
[404028250,1769748639145,-150.0,0.00017866,2]
[404028251,1769748639155,-500.0,0.00017866,2]
[404028252,1769748639165,-2151.0,0.00017866,2]
[404028253,1769748639175,-2000.0,0.0001788,2]
[404028254,1769748639185,-521.0,0.00017889,2]
[404028255,1769748639195,-199.38200897,0.00017898,2]
[404028256,1769748639204,-153.81058903,0.000179,2]
[404028257,1769748639214,-10000.0,0.000179,2]
[404028258,1769748639224,-152.45665747,0.000179,2]
[404028259,1769748639234,-572.333329,0.000179,2]
[404028260,1769748639245,-8397.12667766,0.000179,2]
[404028261,1769748639255,-1090.47951207,0.000179,2]
[404028262,1769748639264,-477.8141798,0.000179,2]
[404028263,1769748639274,-243.32969273,0.000179,2]
[404028264,1769748639284,-165.52240046,0.000179,2]
[404028265,1769748639294,-367.97241671,0.00017918,2]
[404028266,1769748639303,-150.0,0.00017921,2]
[404028267,1769748639313,-150.0,0.00017921,2]
[404028268,1769748639328,-250.0,0.00017921,2]
[404028269,1769748639342,-627.18667624,0.00017921,2]
[404028270,1769748639352,-2151.0,0.00017921,2]
[404028271,1769748639361,-521.0,0.00017925,2]
[404028272,1769748639371,-2000.0,0.0001793,2]
[404028273,1769748639382,-521.0,0.00017937,2]
[404028274,1769748639391,-500.0,0.00017973,2]
[404028275,1769748639401,-250.0,0.00017976,2]
[404028276,1769748639417,-250.0,0.00017976,2]
[404028277,1769748639438,-2151.0,0.00017976,2]
[404028278,1769748639454,-2000.0,0.0001798,2]
[404028279,1769748639463,-151.0,0.00017997,2]
[404028280,1769748639474,-151.0,0.00017997,2]
[404028281,1769748639485,-151.0,0.00017997,2]
[404028282,1769748639496,-469.09,0.00017997,2]
[404028283,1769748639506,-500.0,0.00017999,2]
[404028284,1769748639518,-500.0,0.00017999,2]
[404028285,1769748639528,-500.0,0.00017999,2]
[404028286,1769748639539,-500.0,0.00017999,2]
[404028287,1769748639549,-500.0,0.00017999,2]
[404028288,1769748639559,-500.0,0.00017999,2]
[404028289,1769748639568,-340.45778603,0.00017999,2]
[404028290,1769748639578,-186.98,0.00017999,2]
[404028291,1769748639588,-500.0,0.00017999,2]
[404028292,1769748639599,-500.0,0.00017999,2]
[404028293,1769748639613,-180.14376582,0.00017999,2]
[404028294,1769748639623,-500.0,0.00017999,2]
[404028295,1769748639634,-321.47478496,0.00017999,2]
[404028296,1769748639644,-500.0,0.00017999,2]
[404028297,1769748639655,-299.94380106,0.00017999,2]
[404028298,1769748639665,-500.0,0.00017999,2]
[404028299,1769748639675,-348.73896964,0.00017999,2]
[404028300,1769748639688,-500.0,0.00017999,2]
[404028301,1769748639698,-500.0,0.00017999,2]
[404028302,1769748639708,-500.0,0.00017999,2]
[404028303,1769748639718,-500.0,0.00017999,2]
[404028304,1769748639728,-500.0,0.00017999,2]
[404028305,1769748639739,-500.0,0.00017999,2]
[404028306,1769748639750,-500.0,0.00017999,2]
[404028307,1769748639759,-500.0,0.00017999,2]
[404028308,1769748639769,-500.0,0.00017999,2]
[404028309,1769748639779,-500.0,0.00017999,2]
[404028310,1769748639788,-500.0,0.00017999,2]
[404028311,1769748639800,-500.0,0.00017999,2]
[404028312,1769748639809,-500.0,0.00017999,2]
[404028313,1769748639819,-500.0,0.00017999,2]
[404028314,1769748639828,-500.0,0.00017999,2]
[404028315,1769748639838,-500.0,0.00017999,2]
[404028316,1769748639848,-500.0,0.00017999,2]
[404028317,1769748639859,-500.0,0.00017999,2]
[404028318,1769748639868,-500.0,0.00017999,2]
[404028319,1769748639878,-500.0,0.00017999,2]
[404028320,1769748639888,-500.0,0.00017999,2]
[404028321,1769748639898,-500.0,0.00017999,2]
[404028322,1769748639909,-500.0,0.00017999,2]
[404028323,1769748639921,-500.0,0.00017999,2]
[404028324,1769748639932,-500.0,0.00017999,2]
[404028325,1769748639943,-500.0,0.00017999,2]
[404028326,1769748639954,-500.0,0.00017999,2]
[404028327,1769748639963,-500.0,0.00017999,2]
[404028328,1769748639973,-500.0,0.00017999,2]
[404028329,1769748639985,-500.0,0.00017999,2]
[404028330,1769748639995,-500.0,0.00017999,2]
[404028331,1769748640005,-500.0,0.00017999,2]
[404028332,1769748640015,-500.0,0.00017999,2]